Cogmind - Beta 15 *** ADVENTURER MODE // 2025.09.22 @ 14:28:47 Player: slugman Result: Destroyed by as-31635 with Assembled Blade Performance ------------- Evolutions (0) 0 Regions Visited (2) 400 Robots Destroyed (4) 20 Value Destroyed (87) 87 Prototype IDs (0) 0 Alien Tech Used (0) 0 Bonus (0) 0 TOTAL SCORE: 507 Bonus ------- None Cogmind --------- Core Integrity 0/250 Matter 101/450 Energy 84/100 System Corruption 0% Temperature Cool (0) Movement Rolling (80) Location -10/Mines Parts ------- > --- POWER (1) -------- (None) > --- PROPULSION (2) --- Wheel > --- UTILITY (2) ------ Large Matter Pod > --- WEAPON (2) ------- (None) > --- INVENTORY (5) ---- Light Assault Rifle Mining Laser Peak State ------------ > --- POWER ------------ Light Ion Engine > --- PROPULSION ------- Aluminum Leg Aluminum Leg > --- UTILITY ---------- (None) > --- WEAPON ----------- Small Laser Light Assault Rifle > --- INVENTORY -------- Wheel Wheel Assault Rifle [Rating: 5] Favorites ----------- Power Light Ion Engine Engine Light Ion Engine Propulsion Aluminum Leg Leg Aluminum Leg Wheel Wheel Utility Large Matter Pod Storage Large Matter Pod Weapon Assault Rifle Energy Gun Medium Laser Ballistic Gun Assault Rifle Special Weapon Mining Laser Build | -11 -10 -10 ------- Run | Yrd Mat Min Slots Evolved . | . . . Power . | . . . Propulsion . | . . . Utility . | . . . Weapon . | . . . Parts Attached 14 | 6 7 1 Power 2 | 1 1 . Engine 2 | 1 1 . Core . | . . . Reactor . | . . . Propulsion 5 | 2 2 1 Treads . | . . . Leg 2 | 2 . . Wheel 3 | . 2 1 Hover . | . . . Flight . | . . . Utility 1 | . 1 . Device . | . . . Storage 1 | . 1 . Processor . | . . . Hackware . | . . . Protection . | . . . Artifact . | . . . Weapon 6 | 3 3 . Energy Gun 2 | 1 1 . Energy Cannon . | . . . Ballistic Gun 2 | 2 . . Ballistic Cannon . | . . . Launcher . | . . . Special Weapon 2 | . 2 . Impact Weapon . | . . . Slashing Weapon . | . . . Piercing Weapon . | . . . Special Melee Weapon . | . . . Unidentified Prototypes . | . . . Parts Lost 9 | . 6 3 Power 2 | . 1 1 Propulsion 4 | . 3 1 Utility . | . . . Weapon 3 | . 2 1 Highest Loss Streak 6 | . 6 3 To Critical Strikes . | . . . Average Backups 2 | 2 3 2 Power . | . . . Propulsion 1 | 1 1 . Utility . | . . . Weapon 1 | . 1 2 Tool/Special . | . . . Unused Backups 2 | . 2 . Power . | . . . Propulsion 1 | . 1 . Utility . | . . . Weapon 1 | . 1 . Tool/Special . | . . . Average Slot Usage (%) 62 | . 65 52 Engine 12 | . 12 14 Leg 11 | . 15 . Wheel 10 | . 10 12 Storage 4 | . 1 14 Energy Gun 8 | . 11 . Ballistic Gun 10 | . 14 . Special Weapon 2 | . . 10 Peak Build Rating 5 | 5 5 4 Average Rating 4 | 3 4 3 On Entrance 3 | . 5 5 Naked Turns . | . . . Heaviest Build 9 | 6 9 7 Greatest Support 20 | 20 20 10 Greatest Overweight (x) 1 | . . 1 Average Overweight (x) . | . . . Largest Inventory Capacity 5 | 5 5 5 Average Capacity 5 | 5 5 5 Most Carried 5 | 5 5 3 Average Carried 3 | 2 3 2 Final Capacity 5 | 5 5 5 Final Carried 5 | 5 1 2 Class Distribution -------------------- 100% | Mutant Dominant Class ---------------- Mutant | -10/Materials Mutant | -10/Mines Resources | -11 -10 -10 ----------- Run | Yrd Mat Min Matter Collected 222 | 196 26 . Remotely . | . . . Salvage Created 129 | 35 94 . Parts 4 | 2 2 . Haulers Intercepted . | . . . Recyclers Shooed . | . . . Parts Field Recycled . | . . . Retrieved Matter . | . . . Parts Self-Destructed . | . . . Prevented . | . . . Kills | -11 -10 -10 ------- Run | Yrd Mat Min Combat Hostiles Destroyed 2 | 1 1 . Guns 2 | 1 1 . Classes Destroyed 3 | 1 2 . Worker 1 | . 1 . Builder 1 | . 1 . Grunt 2 | 1 1 . Best Kill Streak 1 | 1 1 . Combat Bots Only 1 | 1 1 . Max Kills in Single Turn 1 | 1 1 . Gunslinging . | . . . Exploded . | . . . Melee . | . . . Uniques/NPCs Destroyed . | . . . Combat | -11 -10 -10 -------- Run | Yrd Mat Min Hostile Shots Fired 120 | 3 97 20 Missed 31 | 2 23 6 Hits 89 | 1 74 14 Melee 4 | . . 4 Projectile 85 | 1 74 10 Critical Strikes 1 | . 1 . Damage Taken 911 | 8 697 206 Core 251 | . 134 117 Absorbed by Shields . | . . . Ignored by Resistances 275 | 3 213 59 Core Remaining (%) 100 | 100 . . Volleys Fired 28 | 2 26 . Largest 2 | 2 2 . Hottest 70 | 60 70 . Shots Fired 55 | 4 51 . Gun 55 | 4 51 . Cannon . | . . . Launcher . | . . . Special . | . . . Kinetic 28 | 2 26 . Thermal 27 | 2 25 . Explosive . | . . . Electromagnetic . | . . . Robot Hit Streak 11 | 2 11 . Robot Miss Streak 2 | 1 2 . Penetration Max . | . . . Secondary Targets . | . . . Shots Hit Robots 37 | 2 35 . Core Hits 10 | 2 8 . Critical Kills . | . . . Critical Parts Destroyed . | . . . Critical Strikes 3 | . 3 . Burn 3 | . 3 . Melee Attacks . | . . . Impact . | . . . Slashing . | . . . Piercing . | . . . Sneak Attacks . | . . . Combat Hostiles . | . . . Follow-up Attacks . | . . . Damage Inflicted 459 | 26 433 . Guns 459 | 26 433 . Cannons . | . . . Explosions . | . . . Melee . | . . . Ramming . | . . . Kinetic 273 | 14 259 . Thermal 186 | 12 174 . Explosive . | . . . Electromagnetic . | . . . Impact . | . . . Slashing . | . . . Piercing . | . . . Highest Corruption . | . . . Average Corruption . | . . . Corruption Purged . | . . . Corruption Blocked . | . . . Overload Shots . | . . . Overflow Damage . | . . . Projectiles . | . . . Explosions . | . . . Melee . | . . . Knockbacks . | . . . Impact . | . . . Kinetic . | . . . Secondary . | . . . Self-Inflicted Damage . | . . . Shots . | . . . Rammed . | . . . Targets Rammed . | . . . Kicked . | . . . Crushed . | . . . Highest Temperature 422 | 6 422 . Average Temperature 166 | 6 176 . Received Heat Transfer 561 | 6 546 9 Effects 2 | . 2 . Interference 2 | . 2 . Siege Activations . | . . . Martial Activations . | . . . Shielding Activations . | . . . Robots Disrupted . | . . . Combat Hostiles . | . . . Robots Corrupted . | . . . Combat Hostiles . | . . . Parts Fried . | . . . Impact Corruptions . | . . . Robots Melted . | . . . Combat Hostiles . | . . . Parts Melted 1 | . 1 . Heat Transferred 753 | 25 728 . Parts Sabotaged . | . . . Parts Stolen . | . . . Parts Stripped . | . . . Power Chain Reactions . | . . . Alert | -11 -10 -10 ------- Run | Yrd Mat Min Maximum Alert Level . | . . . Low Security (%) 100 | 100 100 100 Level 1 . | . . . Level 2 . | . . . Level 3 . | . . . Level 4 . | . . . Level 5 . | . . . High Security . | . . . Max Security . | . . . Peak Influence 30 | 20 30 30 Initial 5 | . 5 . Average 2 | 1 1 8 Influence Increases 99 | 20 49 30 Destroy 0b10 Robot/C 40 | 20 20 . Destroy 0b10 Robot/NC 10 | . 10 . Destroy Leader 10 | . 10 . Successful Hack 6 | . 6 . Destroy Structure 3 | . 3 . Lose Combat Pursuer 30 | . . 30 Influence Decreases 99 | 10 59 30 Entered New Map 5 | . 5 . Time Decay 64 | 10 34 20 Lost Part 30 | . 20 10 Squads Dispatched . | . . . Investigation . | . . . Extermination . | . . . Reinforcement . | . . . Assault . | . . . Garrison . | . . . Intercept . | . . . Searches Triggered . | . . . Construction Impeded . | . . . Haulers Reinforced . | . . . Active Scanning Responses . | . . . Cargo Convoy Interrupts . | . . . Stealth | -11 -10 -10 --------- Run | Yrd Mat Min Distress Signals 1 | . 1 . Communications Jammed . | . . . Distress Signals . | . . . Times Spotted 27 | 1 9 17 Peak Tracking Total 16 | 1 6 16 Tactical Retreats 2 | . . 2 Traps | -11 -10 -10 ------- Run | Yrd Mat Min Traps Triggered . | . . . Indirectly . | . . . Trap Hack Attempts . | . . . Triggered . | . . . Disarmed . | . . . Reprogrammed . | . . . Reused . | . . . Traps Extracted . | . . . Installed . | . . . Triggered . | . . . Machines | -11 -10 -10 ---------- Run | Yrd Mat Min Machines Disabled . | . . . Max in Single Turn . | . . . Machines Repaired . | . . . Machines Dismantled . | . . . Machines Sabotaged . | . . . Overloaded Fab Kills . | . . . Hacking | -11 -10 -10 --------- Run | Yrd Mat Min Machines Accessed 1 | . 1 . Terminals 1 | . 1 . Fabricators . | . . . Repair Stations . | . . . Recycling Units . | . . . Scanalyzers . | . . . Garrison Access . | . . . Total Hacks 3 | . 3 . Successful 2 | . 2 . Failed 1 | . 1 . Catastrophic . | . . . Database Lockouts . | . . . Manual . | . . . Terminals 3 | . 3 . Fabricators . | . . . Repair Stations . | . . . Recycling Units . | . . . Scanalyzers . | . . . Garrison Access . | . . . Terminal Hacks 2 | . 2 . Record 2 | . 2 . Fabricator Hacks . | . . . Repair Station Hacks . | . . . Recycling Unit Hacks . | . . . Scanalyzer . | . . . Garrison Access Hacks . | . . . Unauthorized Hacks . | . . . Terminals . | . . . Fabricators . | . . . Repair Stations . | . . . Recycling Units . | . . . Scanalyzers . | . . . Garrison Access . | . . . Data Cores Recovered . | . . . Used . | . . . Hacking Detections . | . . . Full Trace Events . | . . . Feedback Events . | . . . Feedback Blocked . | . . . Robot Schematics Acquired . | . . . Robots Built . | . . . Authchips . | . . . Time . | . . . Total Robot Build Rating . | . . . Part Schematics Acquired . | . . . Parts Built . | . . . Authchips . | . . . Time . | . . . Total Part Build Rating . | . . . Parts Repaired . | . . . Time . | . . . Parts Recycled . | . . . Recycled Matter . | . . . Retrieved Matter . | . . . Retrieved Components . | . . . Parts Scanalyzed . | . . . Part Schematics Acquired . | . . . Parts Damaged . | . . . Bothacking | -11 -10 -10 ------------ Run | Yrd Mat Min Used RIF Installer . | . . . Robots Hacked . | . . . Non-combat . | . . . Combat . | . . . Robot Hacks Applied . | . . . Relay Couplers Released . | . . . Fabnet Peak Effective % . | . . . Robots Rewired . | . . . Allies Hacked . | . . . Hacks Repelled . | . . . Allies | -11 -10 -10 -------- Run | Yrd Mat Min Total Allies . | . . . Largest Group . | . . . Highest-Rated Group . | . . . Highest-Rated Ally . | . . . Total Orders . | . . . Ally Attacks . | . . . Total Damage . | . . . Kills . | . . . Allies Corrupted . | . . . Allies Melted . | . . . Intel | -11 -10 -10 ------- Run | Yrd Mat Min Active Infowar (turns) . | . . . Robot Analysis Total . | . . . Derelict Logs Recovered . | . . . Drone Launches . | . . . Drone Recoveries . | . . . Exploration | -11 -10 -10 ------------- Run | Yrd Mat Min Turns Passed 463 | 110 275 78 Spaces Moved 366 | 92 181 93 Core 42 | 32 3 7 Treads . | . . . Legs 146 | 60 86 . Wheels 178 | . 92 86 Hover . | . . . Flight . | . . . Fastest Speed 50 | 50 50 50 Average Speed 93 | 95 98 80 Slowest Speed 120 | 120 120 100 Overloaded Moves . | . . . Propulsion Burnouts . | . . . Robots Hopped . | . . . Potential Cave-ins . | . . . Cave-ins Triggered . | . . . Exploration Rate (%) 28 | 8 36 40 Regions Visited 2 Branch Regions 1 Pre-discovered Areas . | . . . Known Exits Taken . | . . . Unknown Exits Taken 2 | 1 1 . Scrap Searched . | . . . Spaces Dug . | . . . Terrain Destroyed . | . . . Melee . | . . . Projectile . | . . . AOE . | . . . Terrain Rammed . | . . . Walls Destroyed . | . . . Machines Disabled . | . . . Actions | -11 -10 -10 --------- Run | Yrd Mat Min Total 431 | 109 226 96 Wait . | . . . Move 364 | 91 180 93 Hop . | . . . Pick Up 16 | 10 5 1 Fast Attach . | . . . Attach 12 | 5 6 1 Detach 1 | . . 1 Swap 7 | 1 6 . Drop 3 | . 3 . Fire 28 | 2 26 . Melee . | . . . Ram . | . . . Kick . | . . . Crush . | . . . Escape Stasis . | . . . Rewire . | . . . Trap . | . . . Miscellaneous . | . . . Route ------- -11/Scrapyard -10/Materials (discovered 2 exits: [*Mat] / [*Min]) -10/Mines History --------- Turn | Location | Event 2 | -11/Scrapyard | Met Revision 17 76 | -11/Scrapyard | Discovered new exit (range 8) 111 | -11/Scrapyard | Entered Materials 272 | -10/Materials | Discovered new exit (range 15) 338 | -10/Materials | Build established: Mutant 343 | -10/Materials | Core integrity fell below 50% 369 | -10/Materials | Discovered new exit (range 8) 371 | -10/Materials | Lost 6 parts (1p3n2w) 386 | -10/Materials | Entered Mines 436 | -10/Mines | Assembled infested the area 464 | -10/Mines | Core integrity fell below 20% 464 | -10/Mines | Destroyed by as-31635 with Assembled Blade Last Messages --------------- K-01 Serf collects debris. Acquired Mining Laser. K-01 Serf collects debris. Machine disabled. LOCATION=UNKNOWN GOAL=ESCAPE ALERT: Infestation in the mines, dispatching Demolisher response squad. T-07 Excavator destroyed. Mining Laser destroyed. T-07 Excavator destroyed. Wheel destroyed. Overweight warning: You are carrying more than your current propulsion can efficiently support, which slows movement; see status page ('s') or the top of the parts list for the specific mass vs. support values. Lgt. Ion Engine destroyed. Acquired Wheel. [Achievement: First Step to Greatness] Map ----- +----------------------------------------------------+ | ?????????????????????????????# #?????# #?? | | ???????????????????????????? #???### #?? | | ?????????????????????????? ##??## #?? | | ????????????????????????? #??## #?? | | ???????????????????????? ##??# #?? | | ???????????????????????# ## #????# ### | | ???????????????????????# #?####?????## | | ???????????????????????# ????????????## | | ??????????????????????? ??????????????# #### | | ??????????????????????? ???????????????## #??? | | ??????????????????????? """?????????????# #??? | | ??????????????????????? """???????????## #??? | | ??????????????????????? ??????????## ##??? | | ???????????????????????# #??????????# #???? | | ???????????????????????# #??????????# ##??? | | ???????????????????????# #?????????## ##?? | | ???????????????????????# #????????## #?? | | ??????????????????????? #????????# #?? | | ???????????????????????# #????????# #??? | | ????????????????????#### #?????????# #??? | | ???????????????????## #????????## ##?? | | ???????????????????# #??????### ##? | | ???????????????????# ######## #? | | ????????????????????# #? | | ???????????????????## aa *% #?? | | ???????????????????# @ ######## ! ### | | ???????????????????# a#??????## | | ???????????????????# = #??????## | | ???????????????????# #??????# ##### | | ?????????????????? #?###### #???? | | ????????????????? *! ##??? | | ????????????????#### a |%= #??? | | ???????????????????# #### ##### #?? | | ???????????????????## a ##??#?????#### #? | | ????????????????????##a ##????????????## # | | ?????????????????????#a #??????????????#### | | ?????????????????????